[Event "December 19 Early 2023"]
[Site "https://www.chess.com"]
[Date "2023.12.19"]
[Round "10"]
[White "Kuhn, Clement"]
[Black "Kiselev, Pavel"]
[Result "0-1"]
[Board "128"]
[TimeControl "180+1"]
[WhiteFideId "36099775"]
[BlackFideId "4191102"]
[WhiteElo "2251"]
[BlackElo "2145"]
[WhiteTeam "FRA"]
[BlackTeam "RUS"]
[WhiteClock "0:00:05"]
[BlackClock "0:00:08"]

1. e4 {[%clk 0:03:00]}  c5 {[%clk 0:02:59]} 2. Nf3 {[%clk 0:02:57]}  g6 {[%clk 0:02:58]} 3. d4 {[%clk 0:02:56]}  cxd4 {[%clk 0:02:59]} 4. Qxd4 {[%clk 0:02:54]}  Nf6 {[%clk 0:02:59]} 5. Nc3 {[%clk 0:02:52]}  Nc6 {[%clk 0:02:58]} 6. Qd2 {[%clk 0:02:52]}  d6 {[%clk 0:02:57]} 7. b3 {[%clk 0:02:48]}  Bg7 {[%clk 0:02:55]} 8. Bd3 {[%clk 0:02:49]}  O-O {[%clk 0:02:51]} 9. Bb2 {[%clk 0:02:48]}  Ng4 {[%clk 0:02:51]} 10. h3 {[%clk 0:02:46]}  Nge5 {[%clk 0:02:51]} 11. Nxe5 {[%clk 0:02:47]}  Nxe5 {[%clk 0:02:52]} 12. Be2 {[%clk 0:02:47]}  Qa5 {[%clk 0:02:45]} 13. O-O {[%clk 0:02:46]}  Bd7 {[%clk 0:02:42]} 14. Rad1 {[%clk 0:02:45]}  Rfe8 {[%clk 0:02:37]} 15. Kh1 {[%clk 0:02:44]}  Rac8 {[%clk 0:02:34]} 16. f4 {[%clk 0:02:27]}  Nc6 {[%clk 0:02:19]} 17. Qe3 {[%clk 0:01:56]}  Nb4 {[%clk 0:02:16]} 18. e5 {[%clk 0:01:07]}  Nxc2 {[%clk 0:02:06]} 19. Qd2 {[%clk 0:01:07]}  Nb4 {[%clk 0:01:49]} 20. Nd5 {[%clk 0:00:13]}  Qxd5 {[%clk 0:01:48]} 21. Qxb4 {[%clk 0:00:13]}  Qc5 {[%clk 0:01:32]} 22. Qxc5 {[%clk 0:00:13]}  Rxc5 {[%clk 0:01:32]} 23. Bd4 {[%clk 0:00:13]}  Ra5 {[%clk 0:01:32]} 24. exd6 {[%clk 0:00:13]}  exd6 {[%clk 0:01:31]} 25. Bxg7 {[%clk 0:00:13]}  Kxg7 {[%clk 0:01:29]} 26. Bc4 {[%clk 0:00:13]}  Bc6 {[%clk 0:01:26]} 27. Rxd6 {[%clk 0:00:12]}  Rxa2 {[%clk 0:01:26]} 28. Rg1 {[%clk 0:00:09]}  Re3 {[%clk 0:01:23]} 29. Kh2 {[%clk 0:00:07]}  Rc3 {[%clk 0:01:08]} 30. Bd5 {[%clk 0:00:07]}  Bxd5 {[%clk 0:01:06]} 31. Rxd5 {[%clk 0:00:08]}  Rxb3 {[%clk 0:01:06]} 32. Rd7 {[%clk 0:00:08]}  b5 {[%clk 0:01:00]} 33. Rb7 {[%clk 0:00:07]}  a5 {[%clk 0:01:00]} 34. Re1 {[%clk 0:00:07]}  Rbb2 {[%clk 0:00:57]} 35. Rg1 {[%clk 0:00:07]}  b4 {[%clk 0:00:56]} 36. Kg3 {[%clk 0:00:08]}  a4 {[%clk 0:00:55]} 37. Kf3 {[%clk 0:00:08]}  b3 {[%clk 0:00:51]} 38. g4 {[%clk 0:00:08]}  Rf2+ {[%clk 0:00:49]} 39. Kg3 {[%clk 0:00:08]}  Rfe2 {[%clk 0:00:37]} 40. Kf3 {[%clk 0:00:06]}  Re8 {[%clk 0:00:12]} 41. Rd1 {[%clk 0:00:05]}  b2 {[%clk 0:00:10]} 42. Rdd7 {[%clk 0:00:06]}  Rf8 {[%clk 0:00:10]} 43. Rb4 {[%clk 0:00:05]}  a3 {[%clk 0:00:10]} 44. Rbb7 {[%clk 0:00:05]}  Ra1 {[%clk 0:00:10]} 45. f5 {[%clk 0:00:04]}  b1=Q {[%clk 0:00:10]} 46. Rxb1 {[%clk 0:00:03]}  Rxb1 {[%clk 0:00:10]} 47. Ra7 {[%clk 0:00:04]}  Rb3+ {[%clk 0:00:09]} 48. Kf4 {[%clk 0:00:05]}  gxf5 {[%clk 0:00:10]} 49. g5 {[%clk 0:00:05]}  Rfb8 {[%clk 0:00:07]} 50. h4 {[%clk 0:00:04]}  R8b4+ {[%clk 0:00:08]} 51. Kxf5 {[%clk 0:00:05]}  Rb5+ {[%clk 0:00:07]} 52. Ke4 {[%clk 0:00:05]}  Rb7 {[%clk 0:00:07]} 53. Ra6 {[%clk 0:00:05]}  R3b4+ {[%clk 0:00:07]} 54. Kf5 {[%clk 0:00:05]}  Rxh4 {[%clk 0:00:08]} 55. Rxa3 {[%clk 0:00:05]}  Rb5# {[%clk 0:00:08]} 0-1

[Event "December 19 Early 2023"]
[Site "https://www.chess.com"]
[Date "2023.12.19"]
[Round "10"]
[White "Kotlyar, Kirill"]
[Black "Bach, Matthias"]
[Result "1-0"]
[Board "129"]
[TimeControl "180+1"]
[WhiteFideId "24145599"]
[BlackFideId "4603168"]
[WhiteElo "2397"]
[BlackElo "2130"]
[WhiteTeam "RUS"]
[BlackTeam "GER"]
[WhiteClock "0:00:42"]
[BlackClock "0:00:07"]

1. e4 {[%clk 0:02:59]}  e5 {[%clk 0:02:49]} 2. Nf3 {[%clk 0:02:59]}  Nc6 {[%clk 0:02:49]} 3. Bb5 {[%clk 0:02:59]}  Bc5 {[%clk 0:02:49]} 4. O-O {[%clk 0:02:58]}  d6 {[%clk 0:02:49]} 5. Re1 {[%clk 0:02:57]}  a6 {[%clk 0:02:48]} 6. Ba4 {[%clk 0:02:57]}  Ne7 {[%clk 0:02:47]} 7. c3 {[%clk 0:02:57]}  Ba7 {[%clk 0:02:46]} 8. h3 {[%clk 0:02:57]}  O-O {[%clk 0:02:45]} 9. d4 {[%clk 0:02:57]}  exd4 {[%clk 0:02:44]} 10. cxd4 {[%clk 0:02:57]}  d5 {[%clk 0:02:44]} 11. e5 {[%clk 0:02:50]}  Bf5 {[%clk 0:02:43]} 12. Be3 {[%clk 0:02:50]}  Be4 {[%clk 0:02:42]} 13. Nc3 {[%clk 0:02:49]}  Nb4 {[%clk 0:02:32]} 14. Nxe4 {[%clk 0:02:22]}  dxe4 {[%clk 0:02:31]} 15. Ng5 {[%clk 0:02:16]}  Nd3 {[%clk 0:02:09]} 16. Re2 {[%clk 0:02:14]}  Bxd4 {[%clk 0:02:01]} 17. Bxd4 {[%clk 0:02:06]}  Qxd4 {[%clk 0:01:59]} 18. Rxe4 {[%clk 0:01:47]}  Qxf2+ {[%clk 0:01:58]} 19. Kh2 {[%clk 0:01:47]}  Rad8 {[%clk 0:01:42]} 20. Qg4 {[%clk 0:01:38]}  Qf5 {[%clk 0:01:29]} 21. Qxf5 {[%clk 0:01:11]}  Nxf5 {[%clk 0:01:28]} 22. e6 {[%clk 0:01:12]}  Nd6 {[%clk 0:00:54]} 23. e7 {[%clk 0:01:02]}  Nxe4 {[%clk 0:00:52]} 24. exf8=Q+ {[%clk 0:01:02]}  Rxf8 {[%clk 0:00:48]} 25. Nxe4 {[%clk 0:01:03]}  Nxb2 {[%clk 0:00:47]} 26. Bb3 {[%clk 0:01:04]}  Re8 {[%clk 0:00:45]} 27. Nc5 {[%clk 0:01:03]}  b5 {[%clk 0:00:38]} 28. Nxa6 {[%clk 0:01:00]}  c6 {[%clk 0:00:34]} 29. Nc5 {[%clk 0:00:59]}  g6 {[%clk 0:00:30]} 30. Rb1 {[%clk 0:00:59]}  Re2 {[%clk 0:00:29]} 31. Rf1 {[%clk 0:00:54]}  Re7 {[%clk 0:00:26]} 32. Rf2 {[%clk 0:00:51]}  Re5 {[%clk 0:00:23]} 33. Nd7 {[%clk 0:00:48]}  Nd3 {[%clk 0:00:21]} 34. Rxf7 {[%clk 0:00:44]}  Kh8 {[%clk 0:00:07]} 35. Nxe5 {[%clk 0:00:42]} 1-0

[Event "December 19 Early 2023"]
[Site "https://www.chess.com"]
[Date "2023.12.19"]
[Round "10"]
[White "Kohler, Aran"]
[Black "Herman, Daniel"]
[Result "0-1"]
[Board "131"]
[TimeControl "180+1"]
[WhiteFideId "1002856"]
[BlackFideId "30935008"]
[WhiteElo "2278"]
[BlackElo "1897"]
[WhiteTeam "NED"]
[BlackTeam "USA"]
[WhiteClock "0:00:13"]
[BlackClock "0:00:14"]

1. d4 {[%clk 0:03:00]}  Nf6 {[%clk 0:02:59]} 2. Nf3 {[%clk 0:02:55]}  g6 {[%clk 0:02:59]} 3. Bg5 {[%clk 0:02:54]}  Bg7 {[%clk 0:03:00]} 4. Nbd2 {[%clk 0:02:54]}  O-O {[%clk 0:03:00]} 5. e3 {[%clk 0:02:53]}  d6 {[%clk 0:03:00]} 6. Bd3 {[%clk 0:02:52]}  Nc6 {[%clk 0:02:54]} 7. c3 {[%clk 0:02:49]}  e5 {[%clk 0:02:53]} 8. h4 {[%clk 0:02:41]}  h6 {[%clk 0:02:50]} 9. h5 {[%clk 0:02:41]}  hxg5 {[%clk 0:02:40]} 10. hxg6 {[%clk 0:02:41]}  g4 {[%clk 0:02:30]} 11. Ng5 {[%clk 0:02:36]}  fxg6 {[%clk 0:02:23]} 12. Bxg6 {[%clk 0:02:35]}  d5 {[%clk 0:02:16]} 13. dxe5 {[%clk 0:02:20]}  Nxe5 {[%clk 0:02:17]} 14. Qc2 {[%clk 0:02:19]}  Nxg6 {[%clk 0:02:05]} 15. Qxg6 {[%clk 0:02:18]}  Qe8 {[%clk 0:02:05]} 16. Qd3 {[%clk 0:02:14]}  Qe5 {[%clk 0:01:53]} 17. f4 {[%clk 0:01:57]}  gxf3 {[%clk 0:01:42]} 18. Ndxf3 {[%clk 0:01:56]}  Qf5 {[%clk 0:01:39]} 19. Qd2 {[%clk 0:01:35]}  Ne4 {[%clk 0:01:29]} 20. Nxe4 {[%clk 0:01:26]}  dxe4 {[%clk 0:01:29]} 21. O-O-O {[%clk 0:01:26]}  exf3 {[%clk 0:01:25]} 22. gxf3 {[%clk 0:01:27]}  Be6 {[%clk 0:01:20]} 23. Rdg1 {[%clk 0:01:24]}  Rf7 {[%clk 0:01:03]} 24. Qh2 {[%clk 0:01:17]}  Kf8 {[%clk 0:00:53]} 25. Rg3 {[%clk 0:01:00]}  Bxa2 {[%clk 0:00:42]} 26. e4 {[%clk 0:00:52]}  Qf4+ {[%clk 0:00:38]} 27. Kc2 {[%clk 0:00:52]}  Rd8 {[%clk 0:00:38]} 28. Rhg1 {[%clk 0:00:36]}  Rfd7 {[%clk 0:00:26]} 29. R1g2 {[%clk 0:00:34]}  Rd1 {[%clk 0:00:16]} 30. Qh8+ {[%clk 0:00:20]}  Bxh8 {[%clk 0:00:15]} 31. Rg8+ {[%clk 0:00:13]}  Bxg8 {[%clk 0:00:14]} 0-1

[Event "December 19 Early 2023"]
[Site "https://www.chess.com"]
[Date "2023.12.19"]
[Round "10"]
[White "Balla, Tamas-Kristof"]
[Black "Barwinska, Ewa"]
[Result "1-0"]
[Board "132"]
[TimeControl "180+1"]
[WhiteFideId "1208497"]
[BlackFideId "21833761"]
[WhiteElo "2306"]
[BlackElo "1879"]
[WhiteTeam "ROU"]
[BlackTeam "POL"]
[WhiteClock "0:00:54"]
[BlackClock "0:00:00"]

1. e4 {[%clk 0:03:00]}  c5 {[%clk 0:02:59]} 2. c3 {[%clk 0:02:56]}  e5 {[%clk 0:02:44]} 3. Nf3 {[%clk 0:02:56]}  d6 {[%clk 0:02:44]} 4. Bc4 {[%clk 0:02:56]}  Be7 {[%clk 0:02:39]} 5. d4 {[%clk 0:02:55]}  Nd7 {[%clk 0:02:13]} 6. O-O {[%clk 0:02:51]}  Ngf6 {[%clk 0:02:10]} 7. Bg5 {[%clk 0:02:46]}  h6 {[%clk 0:02:02]} 8. Bh4 {[%clk 0:02:45]}  O-O {[%clk 0:01:59]} 9. Re1 {[%clk 0:02:44]}  a6 {[%clk 0:01:53]} 10. a4 {[%clk 0:02:43]}  Rb8 {[%clk 0:01:43]} 11. a5 {[%clk 0:02:39]}  b5 {[%clk 0:01:40]} 12. axb6 {[%clk 0:02:38]}  Qxb6 {[%clk 0:01:32]} 13. b3 {[%clk 0:02:24]}  Bb7 {[%clk 0:01:18]} 14. d5 {[%clk 0:02:13]}  Qc7 {[%clk 0:00:49]} 15. Nbd2 {[%clk 0:02:10]}  Ra8 {[%clk 0:00:46]} 16. Qe2 {[%clk 0:02:09]}  a5 {[%clk 0:00:44]} 17. Bb5 {[%clk 0:02:04]}  Rfe8 {[%clk 0:00:38]} 18. Ra2 {[%clk 0:02:00]}  Qb6 {[%clk 0:00:38]} 19. Rea1 {[%clk 0:01:58]}  Red8 {[%clk 0:00:19]} 20. Ne1 {[%clk 0:01:36]}  Ba6 {[%clk 0:00:19]} 21. Bxa6 {[%clk 0:01:33]}  Rxa6 {[%clk 0:00:19]} 22. Nc2 {[%clk 0:01:31]}  Qa7 {[%clk 0:00:19]} 23. Ne3 {[%clk 0:01:29]}  Ra8 {[%clk 0:00:19]} 24. Nf5 {[%clk 0:01:29]}  Bf8 {[%clk 0:00:18]} 25. Nc4 {[%clk 0:01:26]}  g6 {[%clk 0:00:19]} 26. Nfe3 {[%clk 0:01:22]}  Nxe4 {[%clk 0:00:16]} 27. Qd3 {[%clk 0:01:16]}  Nef6 {[%clk 0:00:10]} 28. Nxa5 {[%clk 0:01:15]}  Bg7 {[%clk 0:00:08]} 29. Nec4 {[%clk 0:01:13]}  Qc7 {[%clk 0:00:06]} 30. b4 {[%clk 0:01:12]}  e4 {[%clk 0:00:06]} 31. Qg3 {[%clk 0:01:08]}  cxb4 {[%clk 0:00:06]} 32. cxb4 {[%clk 0:01:08]}  Ne5 {[%clk 0:00:06]} 33. Nxe5 {[%clk 0:01:00]}  dxe5 {[%clk 0:00:07]} 34. Bxf6 {[%clk 0:00:56]}  Bxf6 {[%clk 0:00:07]} 35. h3 {[%clk 0:00:57]}  Bg7 {[%clk 0:00:07]} 36. Qe3 {[%clk 0:00:57]}  Qd6 {[%clk 0:00:07]} 37. Qxe4 {[%clk 0:00:55]}  f5 {[%clk 0:00:08]} 38. Qc4 {[%clk 0:00:54]}  Kh7 {[%clk 0:00:06]} 39. Nc6 {[%clk 0:00:55]}  e4 {[%clk 0:00:06]} 40. Rxa6 {[%clk 0:00:54]}  Bxa1 {[%clk 0:00:05]} 41. Rxa8 {[%clk 0:00:54]}  Bg7 {[%clk 0:00:05]} 42. Ra7 {[%clk 0:00:54]}  Qf4 {[%clk 0:00:00]} 43. Qc3 {[%clk 0:00:54]} 1-0

[Event "December 19 Early 2023"]
[Site "https://www.chess.com"]
[Date "2023.12.19"]
[Round "10"]
[White "Golubenko, Valentina"]
[Black "Cansun, Can Alp"]
[Result "1-0"]
[Board "133"]
[TimeControl "180+1"]
[WhiteFideId "4501993"]
[BlackFideId "6390188"]
[WhiteElo "2126"]
[BlackElo "2031"]
[WhiteTeam "CRO"]
[BlackTeam "TUR"]
[WhiteClock "0:00:15"]
[BlackClock "0:00:00"]

1. e4 {[%clk 0:03:00]}  c5 {[%clk 0:02:59]} 2. Nf3 {[%clk 0:03:00]}  d6 {[%clk 0:02:59]} 3. d4 {[%clk 0:02:55]}  cxd4 {[%clk 0:02:59]} 4. Nxd4 {[%clk 0:02:55]}  Nf6 {[%clk 0:03:00]} 5. Nc3 {[%clk 0:02:55]}  Nc6 {[%clk 0:03:00]} 6. Nxc6 {[%clk 0:02:49]}  bxc6 {[%clk 0:03:00]} 7. Bd3 {[%clk 0:02:49]}  e5 {[%clk 0:03:00]} 8. O-O {[%clk 0:02:49]}  Be7 {[%clk 0:03:00]} 9. h3 {[%clk 0:02:47]}  O-O {[%clk 0:03:00]} 10. f4 {[%clk 0:02:45]}  Qc7 {[%clk 0:02:43]} 11. Be3 {[%clk 0:02:41]}  Rb8 {[%clk 0:02:41]} 12. Rb1 {[%clk 0:02:30]}  Rd8 {[%clk 0:02:41]} 13. Qf3 {[%clk 0:02:28]}  Bf8 {[%clk 0:02:35]} 14. fxe5 {[%clk 0:02:23]}  dxe5 {[%clk 0:02:33]} 15. Qf2 {[%clk 0:02:19]}  c5 {[%clk 0:02:28]} 16. Nb5 {[%clk 0:01:42]}  Qa5 {[%clk 0:01:32]} 17. Bxc5 {[%clk 0:01:27]}  Rxb5 {[%clk 0:01:27]} 18. Bxb5 {[%clk 0:00:44]}  Qxb5 {[%clk 0:01:27]} 19. Bxa7 {[%clk 0:00:44]}  Rd7 {[%clk 0:01:20]} 20. Be3 {[%clk 0:00:20]}  Nxe4 {[%clk 0:01:09]} 21. Qf5 {[%clk 0:00:21]}  Ng3 {[%clk 0:00:50]} 22. Qg4 {[%clk 0:00:20]}  Nxf1 {[%clk 0:00:43]} 23. Rxf1 {[%clk 0:00:21]}  Ba6 {[%clk 0:00:27]} 24. Re1 {[%clk 0:00:19]}  Qc4 {[%clk 0:00:24]} 25. Qxd7 {[%clk 0:00:17]}  Qxc2 {[%clk 0:00:19]} 26. Qd5 {[%clk 0:00:15]}  Qxb2 {[%clk 0:00:00]} 27. Bc5 {[%clk 0:00:15]} 1-0

[Event "December 19 Early 2023"]
[Site "https://www.chess.com"]
[Date "2023.12.19"]
[Round "10"]
[White "Franchini, Gabriele"]
[Black "Kolmagorov, Alexey"]
[Result "0-1"]
[Board "135"]
[TimeControl "180+1"]
[WhiteFideId "806790"]
[BlackFideId "34129402"]
[WhiteElo "2215"]
[BlackElo "1989"]
[WhiteTeam "ITA"]
[BlackTeam "RUS"]
[WhiteClock "0:00:00"]
[BlackClock "0:00:10"]

1. e4 {[%clk 0:03:00]}  c5 {[%clk 0:02:59]} 2. Nc3 {[%clk 0:03:00]}  Nc6 {[%clk 0:02:58]} 3. Bb5 {[%clk 0:02:59]}  Nd4 {[%clk 0:02:58]} 4. Nf3 {[%clk 0:03:00]}  a6 {[%clk 0:02:57]} 5. Bd3 {[%clk 0:02:58]}  e6 {[%clk 0:02:54]} 6. O-O {[%clk 0:02:55]}  Ne7 {[%clk 0:02:48]} 7. Nxd4 {[%clk 0:02:53]}  cxd4 {[%clk 0:02:49]} 8. Ne2 {[%clk 0:02:54]}  Nc6 {[%clk 0:02:49]} 9. f4 {[%clk 0:02:50]}  Be7 {[%clk 0:02:31]} 10. Ng3 {[%clk 0:02:46]}  b6 {[%clk 0:02:24]} 11. c3 {[%clk 0:02:43]}  Bb7 {[%clk 0:02:14]} 12. Qg4 {[%clk 0:02:33]}  Qc7 {[%clk 0:01:56]} 13. cxd4 {[%clk 0:01:57]}  Nxd4 {[%clk 0:01:51]} 14. Qxg7 {[%clk 0:01:57]}  O-O-O {[%clk 0:01:45]} 15. b4 {[%clk 0:01:33]}  Nc6 {[%clk 0:01:30]} 16. b5 {[%clk 0:01:25]}  axb5 {[%clk 0:01:27]} 17. Bb2 {[%clk 0:01:23]}  Rhg8 {[%clk 0:01:22]} 18. Qxf7 {[%clk 0:01:16]}  Rgf8 {[%clk 0:01:22]} 19. Qxh7 {[%clk 0:01:04]}  Rxf4 {[%clk 0:01:22]} 20. Rac1 {[%clk 0:00:57]}  Rxf1+ {[%clk 0:01:15]} 21. Bxf1 {[%clk 0:00:58]}  Kb8 {[%clk 0:00:52]} 22. Bxb5 {[%clk 0:00:57]}  Bc5+ {[%clk 0:00:43]} 23. Kh1 {[%clk 0:00:50]}  Qf4 {[%clk 0:00:37]} 24. Bxc6 {[%clk 0:00:43]}  Bxc6 {[%clk 0:00:35]} 25. d4 {[%clk 0:00:18]}  Bxd4 {[%clk 0:00:33]} 26. Rf1 {[%clk 0:00:19]}  Qd2 {[%clk 0:00:28]} 27. Bxd4 {[%clk 0:00:19]}  Qxd4 {[%clk 0:00:29]} 28. Qh5 {[%clk 0:00:14]}  Kb7 {[%clk 0:00:23]} 29. Qf3 {[%clk 0:00:11]}  Rg8 {[%clk 0:00:20]} 30. a3 {[%clk 0:00:11]}  Qe5 {[%clk 0:00:18]} 31. Ne2 {[%clk 0:00:10]}  Qxe4 {[%clk 0:00:17]} 32. Qxe4 {[%clk 0:00:10]}  Bxe4 {[%clk 0:00:18]} 33. Rf2 {[%clk 0:00:09]}  Ra8 {[%clk 0:00:17]} 34. Nc3 {[%clk 0:00:08]}  Rxa3 {[%clk 0:00:16]} 35. Nd1 {[%clk 0:00:02]}  Ra1 {[%clk 0:00:16]} 36. Rf1 {[%clk 0:00:03]}  Bd3 {[%clk 0:00:10]} 37. Re1 {[%clk 0:00:02]}  Bc2 {[%clk 0:00:10]} 38. h3 {[%clk 0:00:00]}  Rxd1 {[%clk 0:00:10]} 0-1

[Event "December 19 Early 2023"]
[Site "https://www.chess.com"]
[Date "2023.12.19"]
[Round "10"]
[White "Nery Junior, Jose Antonio"]
[Black "Palmer, Reegan"]
[Result "1-0"]
[Board "136"]
[TimeControl "180+1"]
[WhiteFideId "2104822"]
[BlackFideId "14322145"]
[WhiteElo "2197"]
[BlackElo "1814"]
[WhiteTeam "BRA"]
[BlackTeam "RSA"]
[WhiteClock "0:00:39"]
[BlackClock "0:00:27"]

1. e4 {[%clk 0:02:56]}  e6 {[%clk 0:02:59]} 2. d4 {[%clk 0:02:56]}  d5 {[%clk 0:02:59]} 3. Nd2 {[%clk 0:02:56]}  Nf6 {[%clk 0:02:57]} 4. e5 {[%clk 0:02:56]}  Nfd7 {[%clk 0:02:57]} 5. Bd3 {[%clk 0:02:57]}  c5 {[%clk 0:02:58]} 6. c3 {[%clk 0:02:57]}  Nc6 {[%clk 0:02:58]} 7. Ne2 {[%clk 0:02:58]}  Qb6 {[%clk 0:02:59]} 8. Nf3 {[%clk 0:02:58]}  h6 {[%clk 0:02:56]} 9. O-O {[%clk 0:02:57]}  g5 {[%clk 0:02:53]} 10. h3 {[%clk 0:02:56]}  Be7 {[%clk 0:02:52]} 11. a3 {[%clk 0:02:53]}  f5 {[%clk 0:02:47]} 12. exf6 {[%clk 0:02:53]}  Nxf6 {[%clk 0:02:45]} 13. Bg6+ {[%clk 0:02:46]}  Kd8 {[%clk 0:02:45]} 14. Ne5 {[%clk 0:02:47]}  Nxe5 {[%clk 0:02:44]} 15. dxe5 {[%clk 0:02:48]}  Nd7 {[%clk 0:02:42]} 16. f4 {[%clk 0:02:45]}  gxf4 {[%clk 0:02:39]} 17. Bxf4 {[%clk 0:02:45]}  Nf8 {[%clk 0:02:35]} 18. Bc2 {[%clk 0:02:41]}  Bd7 {[%clk 0:02:29]} 19. Kh1 {[%clk 0:02:34]}  h5 {[%clk 0:02:24]} 20. b4 {[%clk 0:02:34]}  c4 {[%clk 0:02:24]} 21. Nd4 {[%clk 0:02:33]}  h4 {[%clk 0:02:24]} 22. Be3 {[%clk 0:02:31]}  Qc7 {[%clk 0:02:23]} 23. Bf4 {[%clk 0:02:15]}  Rg8 {[%clk 0:02:22]} 24. Qh5 {[%clk 0:02:04]}  Be8 {[%clk 0:02:23]} 25. Qh6 {[%clk 0:02:02]}  Qd7 {[%clk 0:02:07]} 26. a4 {[%clk 0:01:54]}  a6 {[%clk 0:01:54]} 27. b5 {[%clk 0:01:54]}  a5 {[%clk 0:01:46]} 28. Rad1 {[%clk 0:01:38]}  Rc8 {[%clk 0:01:42]} 29. Be3 {[%clk 0:01:30]}  Ng6 {[%clk 0:01:36]} 30. Bg5 {[%clk 0:01:20]}  Kc7 {[%clk 0:01:27]} 31. Bf6 {[%clk 0:01:18]}  Bxf6 {[%clk 0:01:18]} 32. Rxf6 {[%clk 0:01:16]}  Nxe5 {[%clk 0:01:16]} 33. Qf4 {[%clk 0:01:11]}  Qd6 {[%clk 0:01:00]} 34. Rxe6 {[%clk 0:01:08]}  Rf8 {[%clk 0:01:00]} 35. Qxe5 {[%clk 0:01:04]}  Qxe5 {[%clk 0:00:58]} 36. Rxe5 {[%clk 0:01:04]}  Kd6 {[%clk 0:00:57]} 37. Re6+ {[%clk 0:01:00]}  Kc5 {[%clk 0:00:57]} 38. Rh6 {[%clk 0:00:54]}  Rf2 {[%clk 0:00:50]} 39. Bf5 {[%clk 0:00:51]}  Rc7 {[%clk 0:00:48]} 40. Ne6+ {[%clk 0:00:50]}  Kd6 {[%clk 0:00:47]} 41. Nxc7+ {[%clk 0:00:49]}  Kxc7 {[%clk 0:00:48]} 42. Rxd5 {[%clk 0:00:46]}  Kb8 {[%clk 0:00:35]} 43. b6 {[%clk 0:00:41]}  Bd7 {[%clk 0:00:27]} 44. Rh8+ {[%clk 0:00:39]}  Bc8 {[%clk 0:00:27]} 45. Rxc8# {[%clk 0:00:39]} 1-0

[Event "December 19 Early 2023"]
[Site "https://www.chess.com"]
[Date "2023.12.19"]
[Round "10"]
[White "Ernst, Luca"]
[Black "Feliz Dotel, Dewar Bienvenido"]
[Result "1-0"]
[Board "141"]
[TimeControl "180+1"]
[WhiteFideId "45117055"]
[BlackFideId "6402801"]
[WhiteElo "1973"]
[BlackElo "2069"]
[WhiteTeam "FRA"]
[BlackTeam "DOM"]
[WhiteClock "0:00:32"]
[BlackClock "0:00:00"]

1. Nf3 {[%clk 0:03:00]}  Nf6 {[%clk 0:02:55]} 2. g3 {[%clk 0:02:59]}  b6 {[%clk 0:02:53]} 3. Bg2 {[%clk 0:02:59]}  e6 {[%clk 0:02:54]} 4. O-O {[%clk 0:02:58]}  Be7 {[%clk 0:02:53]} 5. d3 {[%clk 0:02:56]}  d5 {[%clk 0:02:52]} 6. Nbd2 {[%clk 0:02:55]}  O-O {[%clk 0:02:52]} 7. e4 {[%clk 0:02:54]}  c5 {[%clk 0:02:47]} 8. Qe2 {[%clk 0:02:46]}  Nc6 {[%clk 0:02:46]} 9. c3 {[%clk 0:02:44]}  Ba6 {[%clk 0:02:36]} 10. e5 {[%clk 0:02:32]}  Nd7 {[%clk 0:02:14]} 11. Re1 {[%clk 0:02:30]}  Qc7 {[%clk 0:02:14]} 12. Nf1 {[%clk 0:02:26]}  Rae8 {[%clk 0:01:51]} 13. Bf4 {[%clk 0:02:20]}  Qc8 {[%clk 0:01:46]} 14. Rad1 {[%clk 0:01:38]}  f6 {[%clk 0:01:46]} 15. exf6 {[%clk 0:01:27]}  Bxf6 {[%clk 0:01:46]} 16. Bd6 {[%clk 0:01:01]}  Rf7 {[%clk 0:01:37]} 17. Ne3 {[%clk 0:01:01]}  Ne7 {[%clk 0:01:13]} 18. Bh3 {[%clk 0:00:49]}  Nf5 {[%clk 0:01:04]} 19. Nxf5 {[%clk 0:00:49]}  exf5 {[%clk 0:01:04]} 20. Qxe8+ {[%clk 0:00:50]}  Nf8 {[%clk 0:00:57]} 21. Qxc8 {[%clk 0:00:47]}  Bxc8 {[%clk 0:00:58]} 22. Re8 {[%clk 0:00:47]}  Bd7 {[%clk 0:00:52]} 23. Rxf8+ {[%clk 0:00:41]}  Rxf8 {[%clk 0:00:53]} 24. Bxf8 {[%clk 0:00:42]}  Kxf8 {[%clk 0:00:53]} 25. d4 {[%clk 0:00:42]}  c4 {[%clk 0:00:45]} 26. Re1 {[%clk 0:00:40]}  g6 {[%clk 0:00:41]} 27. Ne5 {[%clk 0:00:35]}  Be8 {[%clk 0:00:40]} 28. b3 {[%clk 0:00:35]}  b5 {[%clk 0:00:35]} 29. bxc4 {[%clk 0:00:34]}  bxc4 {[%clk 0:00:36]} 30. Rb1 {[%clk 0:00:34]}  Be7 {[%clk 0:00:03]} 31. Bg2 {[%clk 0:00:32]}  Bd6 {[%clk 0:00:00]} 32. Bxd5 {[%clk 0:00:32]} 1-0

[Event "December 19 Early 2023"]
[Site "https://www.chess.com"]
[Date "2023.12.19"]
[Round "10"]
[White "Filippova, Margarita"]
[Black "Tilahun , Abel Mathewos"]
[Result "1-0"]
[Board "142"]
[TimeControl "180+1"]
[WhiteFideId "34199680"]
[BlackFideId "15702391"]
[WhiteElo "1916"]
[BlackElo "1917"]
[WhiteTeam "RUS"]
[BlackTeam "ETH"]
[WhiteClock "0:00:34"]
[BlackClock "0:00:02"]

1. Nf3 {[%clk 0:03:00]}  Nf6 {[%clk 0:02:59]} 2. d4 {[%clk 0:02:52]}  d5 {[%clk 0:02:57]} 3. c4 {[%clk 0:02:43]}  e6 {[%clk 0:02:56]} 4. g3 {[%clk 0:02:36]}  Be7 {[%clk 0:02:55]} 5. Bg2 {[%clk 0:02:36]}  O-O {[%clk 0:02:56]} 6. O-O {[%clk 0:02:37]}  dxc4 {[%clk 0:02:56]} 7. Na3 {[%clk 0:02:30]}  Bxa3 {[%clk 0:02:48]} 8. bxa3 {[%clk 0:02:31]}  Bd7 {[%clk 0:02:44]} 9. Ne5 {[%clk 0:02:28]}  Bc6 {[%clk 0:02:44]} 10. Nxc6 {[%clk 0:02:26]}  Nxc6 {[%clk 0:02:45]} 11. e3 {[%clk 0:02:25]}  Nd5 {[%clk 0:02:34]} 12. Qc2 {[%clk 0:02:24]}  b5 {[%clk 0:02:28]} 13. Rd1 {[%clk 0:02:21]}  f5 {[%clk 0:02:06]} 14. a4 {[%clk 0:02:17]}  a6 {[%clk 0:02:04]} 15. Ba3 {[%clk 0:02:05]}  Re8 {[%clk 0:01:57]} 16. Bc5 {[%clk 0:02:03]}  Qf6 {[%clk 0:01:50]} 17. axb5 {[%clk 0:02:00]}  axb5 {[%clk 0:01:49]} 18. a4 {[%clk 0:02:01]}  Ncb4 {[%clk 0:01:43]} 19. Qb1 {[%clk 0:01:53]}  c3 {[%clk 0:01:33]} 20. Bxb4 {[%clk 0:01:49]}  bxa4 {[%clk 0:01:23]} 21. Bxd5 {[%clk 0:01:44]}  exd5 {[%clk 0:01:22]} 22. Bxc3 {[%clk 0:01:45]}  h5 {[%clk 0:01:16]} 23. Qc2 {[%clk 0:01:40]}  a3 {[%clk 0:01:13]} 24. Bb4 {[%clk 0:01:34]}  h4 {[%clk 0:01:12]} 25. Rxa3 {[%clk 0:01:23]}  Rxa3 {[%clk 0:01:02]} 26. Bxa3 {[%clk 0:01:24]}  f4 {[%clk 0:00:53]} 27. exf4 {[%clk 0:01:22]}  Re4 {[%clk 0:00:46]} 28. Bc5 {[%clk 0:01:19]}  Qe6 {[%clk 0:00:42]} 29. Qd2 {[%clk 0:01:02]}  Re2 {[%clk 0:00:36]} 30. Qd3 {[%clk 0:00:58]}  h3 {[%clk 0:00:29]} 31. f5 {[%clk 0:00:55]}  Re1+ {[%clk 0:00:25]} 32. Rxe1 {[%clk 0:00:52]}  Qxe1+ {[%clk 0:00:22]} 33. Qf1 {[%clk 0:00:51]}  Qe4 {[%clk 0:00:18]} 34. Qxh3 {[%clk 0:00:49]}  Qb1+ {[%clk 0:00:16]} 35. Qf1 {[%clk 0:00:48]}  Qxf5 {[%clk 0:00:16]} 36. h4 {[%clk 0:00:48]}  c6 {[%clk 0:00:15]} 37. Qe2 {[%clk 0:00:47]}  Qb1+ {[%clk 0:00:14]} 38. Kg2 {[%clk 0:00:47]}  Qf5 {[%clk 0:00:15]} 39. h5 {[%clk 0:00:46]}  Kh7 {[%clk 0:00:14]} 40. g4 {[%clk 0:00:45]}  Qb1 {[%clk 0:00:12]} 41. f4 {[%clk 0:00:43]}  Kg8 {[%clk 0:00:09]} 42. f5 {[%clk 0:00:42]}  Kh7 {[%clk 0:00:07]} 43. Bd6 {[%clk 0:00:38]}  Qc1 {[%clk 0:00:06]} 44. Be5 {[%clk 0:00:37]}  Qg5 {[%clk 0:00:05]} 45. Kh3 {[%clk 0:00:36]}  c5 {[%clk 0:00:04]} 46. dxc5 {[%clk 0:00:35]}  d4 {[%clk 0:00:04]} 47. Bxd4 {[%clk 0:00:35]}  g6 {[%clk 0:00:04]} 48. fxg6+ {[%clk 0:00:35]}  Kg8 {[%clk 0:00:02]} 49. Qe8# {[%clk 0:00:34]} 1-0